Cogmind - Beta 16.1 @@@ ROGUE MODE // 2026.04.29 @ 18:02:20 Player: The Overplayer Result: Destroyed by Autobeam Turret with Autobeam Performance ------------- Evolutions (0) 0 Regions Visited (2) 400 Robots Destroyed (40) 200 Value Destroyed (991) 991 Prototype IDs (4) 80 Alien Tech Used (0) 0 Bonus (0) 0 TOTAL SCORE: 1671 Bonus ------- None Cogmind --------- Core Integrity 0/250 Matter 211/300 Energy 98/100 System Corruption 1% Temperature Cool (12) Movement Rolling (119) Ox2 Location -10/Subcaves Parts ------- > --- POWER (1) -------- (None) > --- PROPULSION (2) --- Wheel Subdweller Monowheel > --- UTILITY (2) ------ Huge Storage Unit Sensor Array > --- WEAPON (2) ------- Heavy Battle Rifle > --- INVENTORY (25) --- Light Treads Light Treads Light Treads Spiked Treads Subdweller Monowheel Subdweller Monowheel Improved Heat Sink High-capacity Storage Unit Small Matter Pod (50) Machine Analyzer Signal Interpreter Signal Interpreter Light Armor Plating Light Armor Plating Hacking Suite Improved Medium Laser Subdweller Beam Cannon Subdweller Beam Cannon Improved Assault Rifle Barrage Gun Battle Cannon Battle Cannon Subdweller Shrapnel Launcher Multitool Mining Claw Peak State ------------ > --- POWER ------------ Heavy Ion Engine Heavy Ion Engine > --- PROPULSION ------- Subdweller Monowheel Subdweller Monowheel > --- UTILITY ---------- Huge Storage Unit Light Armor Plating > --- WEAPON ----------- Powered Cannon > --- INVENTORY -------- Heavy Ion Engine Light Treads Light Treads Light Treads Light Treads Improved Heat Sink High-capacity Storage Unit Small Matter Pod Machine Analyzer Sensor Array Signal Interpreter Signal Interpreter Light Armor Plating Light Armor Plating Hacking Suite Improved Medium Laser Improved Assault Rifle Improved Assault Rifle Improved Assault Rifle Heavy Battle Rifle Battle Cannon Mining Claw [Rating: 30] Favorites ----------- Power Heavy Ion Engine Engine Heavy Ion Engine Power Core Light Nuclear Core Propulsion Wheel Treads Light Treads Wheel Wheel Utility Light Armor Plating Device Improved Heat Sink Storage Huge Storage Unit Protection Light Armor Plating Weapon Improved Assault Rifle Energy Gun Improved Medium Laser Energy Cannon Powered Cannon Ballistic Gun Improved Assault Rifle Slashing Weapon Mining Claw Build | -11 -10 -10 ------- Run | Yrd Mat Sub Slots Evolved . | . . . Power . | . . . Propulsion . | . . . Utility . | . . . Weapon . | . . . Parts Attached 43 | 6 20 17 Power 8 | 1 3 4 Engine 7 | 1 2 4 Core 1 | . 1 . Reactor . | . . . Propulsion 14 | 2 5 7 Treads 3 | . 3 . Leg . | . . . Wheel 11 | 2 2 7 Hover . | . . . Flight . | . . . Utility 9 | 1 5 3 Device 2 | . 1 1 Storage 3 | 1 2 . Processor . | . . . Hackware . | . . . Protection 4 | . 2 2 Artifact . | . . . Weapon 12 | 2 7 3 Energy Gun 2 | 1 1 . Energy Cannon 1 | . . 1 Ballistic Gun 8 | 1 5 2 Ballistic Cannon . | . . . Launcher . | . . . Special Weapon . | . . . Impact Weapon . | . . . Slashing Weapon 1 | . 1 . Piercing Weapon . | . . . Special Melee Weapon . | . . . Unidentified Prototypes 4 | . 3 1 Parts Lost 10 | . 1 9 Power 2 | . . 2 Propulsion 5 | . 1 4 Utility 2 | . . 2 Weapon 1 | . . 1 Highest Loss Streak 3 | . 1 3 To Critical Strikes . | . . . Average Backups 19 | 1 14 23 Power 1 | . 1 1 Propulsion 3 | 1 2 4 Utility 8 | . 5 10 Weapon 5 | . 4 7 Tool/Special . | . . . Unused Backups 26 | . 11 15 Power . | . . . Propulsion 6 | . 4 2 Utility 8 | . 2 6 Weapon 11 | . 5 6 Tool/Special 1 | . . 1 Average Slot Usage (%) 93 | . 98 88 Engine 16 | . 13 19 Treads 8 | . 18 . Wheel 18 | . 8 25 Device 2 | . 3 1 Storage 13 | . 14 12 Protection 10 | . 9 10 Energy Gun 1 | . 3 . Energy Cannon 4 | . . 8 Ballistic Gun 15 | . 22 8 Peak Build Rating 30 | 6 17 30 Average Rating 20 | 4 14 24 On Entrance 7 | . 6 16 Avg Prop Armor Cover (%) 8 | . 9 5 Naked Turns . | . . . Heaviest Build 108 | 13 97 108 Greatest Support 40 | 20 40 40 Greatest Overweight (x) 10 | 1 9 10 Average Overweight (x) 3 | . 1 4 Largest Inventory Capacity 25 | 8 25 25 Average Capacity 21 | 7 17 25 Most Carried 25 | 4 18 25 Average Carried 19 | 1 14 23 Final Capacity 25 | 8 25 25 Final Carried 25 | 4 18 25 Class Distribution -------------------- 100% | Mutant Dominant Class ---------------- Mutant | -10/Materials Mutant | -10/Subcaves Resources | -11 -10 -10 ----------- Run | Yrd Mat Sub Matter Collected 985 | 173 466 346 Remotely . | . . . Salvage Created 1306 | . 688 618 Parts 96 | . 46 50 Haulers Intercepted 2 | . 2 . Recyclers Shooed 1 | . 1 . Parts Field Recycled . | . . . Retrieved Matter . | . . . Parts Self-Destructed 22 | . . 22 Prevented . | . . . Parts Restored . | . . . Kills | -11 -10 -10 ------- Run | Yrd Mat Sub Combat Hostiles Destroyed 30 | . 13 17 Guns 25 | . 13 12 Cannons 4 | . . 4 Classes Destroyed 9 | . 7 2 Worker 3 | . 3 . Hauler 2 | . 2 . Mechanic 1 | . 1 . Operator 1 | . 1 . Watcher 3 | . 3 . Swarmer 10 | . 6 4 Grunt 9 | . 7 2 Sentry 1 | . . 1 Subdweller 10 | . . 10 Best Kill Streak 8 | . 8 4 Combat Bots Only 5 | . 5 4 Max Kills in Single Turn 2 | . 2 2 Gunslinging 1 | . . 1 Exploded . | . . . Melee . | . . . Uniques/NPCs Destroyed . | . . . Combat | -11 -10 -10 -------- Run | Yrd Mat Sub Hostile Shots Fired 188 | . 59 129 Missed 62 | . 20 42 Hits 126 | . 39 87 Projectile 126 | . 39 87 AOE 3 | . . 3 Critical Strikes 4 | . . 4 Damage Taken 1929 | . 383 1546 Core 254 | . 78 176 Absorbed by Shields . | . . . Core Remaining (%) 100 | 100 . . Volleys Fired 97 | . 46 51 Largest 2 | . 2 2 Hottest 120 | . 79 120 Shots Fired 174 | . 93 81 Gun 152 | . 93 59 Cannon 22 | . . 22 Launcher . | . . . Special . | . . . Kinetic 120 | . 61 59 Thermal 54 | . 32 22 Explosive . | . . . Electromagnetic . | . . . Robot Hit Streak 17 | . 7 17 Robot Miss Streak 5 | . 5 4 Penetration Max . | . . . Secondary Targets 5 | . 1 4 Max Gunslinging Chain 1 | . 1 1 Shots Hit Robots 111 | . 57 54 Core Hits 50 | . 30 20 Critical Kills 4 | . . 4 Critical Parts Destroyed . | . . . Critical Strikes 8 | . 4 4 Burn 4 | . 4 . Meltdown 1 | . . 1 Destroy 3 | . . 3 Melee Attacks 1 | . 1 . Impact . | . . . Slashing 1 | . 1 . Piercing . | . . . Sneak Attacks . | . . . Combat Hostiles . | . . . Follow-up Attacks . | . . . Damage Inflicted 2247 | . 924 1323 Guns 1667 | . 924 743 Cannons 580 | . . 580 Explosions . | . . . Melee . | . . . Ramming . | . . . Kinetic 1379 | . 636 743 Thermal 868 | . 288 580 Explosive . | . . . Electromagnetic . | . . . Impact . | . . . Slashing . | . . . Piercing . | . . . Highest Corruption 1 | . 1 1 Average Corruption 1 | . 1 1 Corruption Purged . | . . . Corruption Blocked . | . . . Effects 19 | . 3 16 Message Errors 1 | . . 1 Matter Fused 6 | . 1 5 Heat Flow Errors 3 | . . 3 Parts Rejected 1 | . . 1 Data Loss (minor) 3 | . 1 2 Data Loss (major) 2 | . . 2 Misfires 2 | . 1 1 Weapon Failures 1 | . . 1 Overload Shots 3 | . . 3 Overflow Damage . | . . . Projectiles . | . . . Explosions . | . . . Melee . | . . . Knockbacks . | . . . Impact . | . . . Kinetic . | . . . Secondary . | . . . Self-Inflicted Damage . | . . . Shots . | . . . Rammed . | . . . Targets Rammed . | . . . Kicked . | . . . Crushed . | . . . Highest Temperature 216 | . 214 216 Average Temperature 72 | . 92 55 Received Heat Transfer 480 | . 132 348 Siege Activations . | . . . Martial Activations . | . . . Shielding Activations . | . . . Robots Disrupted . | . . . Combat Hostiles . | . . . Robots Corrupted . | . . . Combat Hostiles . | . . . Parts Fried . | . . . Impact Corruptions . | . . . Robots Melted 1 | . . 1 Combat Hostiles 1 | . . 1 Parts Melted 3 | . 3 . Heat Transferred 962 | . 962 . Parts Sabotaged . | . . . Parts Stolen . | . . . Parts Stripped . | . . . Power Chain Reactions . | . . . Alert | -11 -10 -10 ------- Run | Yrd Mat Sub Maximum Alert Level . | . . . Low Security (%) 100 | 100 100 . Level 1 . | . . . Level 2 . | . . . Level 3 . | . . . Level 4 . | . . . Level 5 . | . . . High Security . | . . . Max Security . | . . . Peak Influence 163 | . 163 . Initial . | . . . Average 54 | . 56 . Influence Increases 708 | . 423 285 Destroy 0b10 Robot/C 400 | . 260 140 Destroy 0b10 Robot/NC 50 | . 50 . Destroy Leader 70 | . 60 10 Successful Hack 8 | . 8 . Disable Machine 45 | . 45 . Lose Combat Pursuer 135 | . . 135 Influence Decreases 518 | . 423 95 Time Decay 498 | . 413 85 Lost Part 20 | . 10 10 Squads Dispatched 2 | . 2 . Investigation 2 | . 2 . Extermination . | . . . Reinforcement . | . . . Assault . | . . . Garrison . | . . . Intercept . | . . . Searches Triggered . | . . . Construction Impeded . | . . . Haulers Reinforced . | . . . Active Scanning Responses . | . . . Cargo Convoy Interrupts . | . . . Stealth | -11 -10 -10 --------- Run | Yrd Mat Sub Distress Signals 2 | . 2 . Communications Jammed . | . . . Distress Signals . | . . . Times Spotted 39 | . 16 23 Peak Tracking Total 6 | . 5 6 Tactical Retreats 3 | . . 3 Traps | -11 -10 -10 ------- Run | Yrd Mat Sub Traps Triggered 6 | . 3 3 Indirectly . | . . . Trap Hack Attempts . | . . . Triggered . | . . . Disarmed . | . . . Reprogrammed . | . . . Reused . | . . . Traps Extracted . | . . . Installed . | . . . Triggered . | . . . Machines | -11 -10 -10 ---------- Run | Yrd Mat Sub Machines Disabled 3 | . 3 . Max in Single Turn 1 | . 1 . Machines Repaired . | . . . Machines Dismantled . | . . . Machines Sabotaged . | . . . Overloaded Fab Kills . | . . . Hacking | -11 -10 -10 --------- Run | Yrd Mat Sub Machines Accessed 4 | . 4 . Terminals 2 | . 2 . Fabricators . | . . . Repair Stations 1 | . 1 . Recycling Units 1 | . 1 . Scanalyzers . | . . . Garrison Access . | . . . Total Hacks 8 | . 8 . Successful 5 | . 5 . Failed 3 | . 3 . Catastrophic . | . . . Database Lockouts . | . . . Manual 6 | . 6 . Terminals 6 | . 6 . Fabricators . | . . . Repair Stations 1 | . 1 . Recycling Units 1 | . 1 . Scanalyzers . | . . . Garrison Access . | . . . Terminal Hacks . | . . . Fabricator Hacks . | . . . Repair Station Hacks . | . . . Recycling Unit Hacks 1 | . 1 . Retrieve Components 1 | . 1 . Scanalyzer . | . . . Garrison Access Hacks . | . . . Unauthorized Hacks 4 | . 4 . Terminals 4 | . 4 . Botnet 2 | . 2 . Skim 2 | . 2 . Fabricators . | . . . Repair Stations . | . . . Recycling Units . | . . . Scanalyzers . | . . . Garrison Access . | . . . Data Cores Recovered . | . . . Used . | . . . Hacking Detections 1 | . 1 . Full Trace Events . | . . . Feedback Events . | . . . Feedback Blocked . | . . . Robot Schematics Acquired . | . . . Robots Built . | . . . Authchips . | . . . Time . | . . . Total Robot Build Rating . | . . . Part Schematics Acquired . | . . . Parts Built . | . . . Authchips . | . . . Time . | . . . Total Part Build Rating . | . . . Part Studies Acquired . | . . . Parts Repaired . | . . . Time . | . . . Parts Recycled . | . . . Recycled Matter . | . . . Retrieved Matter . | . . . Retrieved Components 9 | . 9 . Parts Scanalyzed . | . . . Part Schematics Acquired . | . . . Parts Damaged . | . . . Bothacking | -11 -10 -10 ------------ Run | Yrd Mat Sub Used RIF Installer . | . . . Robots Hacked . | . . . Non-combat . | . . . Combat . | . . . Robot Hacks Applied . | . . . Relay Couplers Released . | . . . Fabnet Peak Effective % . | . . . Robots Rewired . | . . . Allies Hacked . | . . . Hacks Repelled . | . . . Allies | -11 -10 -10 -------- Run | Yrd Mat Sub Total Allies . | . . . Largest Group . | . . . Highest-Rated Group . | . . . Highest-Rated Ally . | . . . Total Orders . | . . . Ally Attacks . | . . . Total Damage . | . . . Kills . | . . . Allies Corrupted . | . . . Allies Melted . | . . . Intel | -11 -10 -10 ------- Run | Yrd Mat Sub Active Infowar (turns) 144 | . . 144 Sensors 144 | . . 144 Robot Analysis Total . | . . . Derelict Logs Recovered 2 | . . 2 Drone Launches . | . . . Drone Recoveries . | . . . Exploration | -11 -10 -10 ------------- Run | Yrd Mat Sub Turns Passed 3388 | 50 1500 1838 Spaces Moved 1939 | 47 773 1119 Core 5 | 5 . . Treads 456 | . 456 . Legs . | . . . Wheels 1478 | 42 317 1119 Hover . | . . . Flight . | . . . Fastest Speed 50 | 50 80 119 Average Speed 148 | 78 158 145 Slowest Speed 320 | 100 320 230 Overloaded Moves . | . . . Propulsion Burnouts . | . . . Robots Hopped . | . . . Potential Cave-ins . | . . . Cave-ins Triggered . | . . . Exploration Rate (%) 54 | 3 94 66 Regions Visited 2 Branch Regions 1 Pre-discovered Areas . | . . . Known Exits Taken . | . . . Unknown Exits Taken 2 | 1 1 . Scrap Searched 2 | . . 2 Spaces Dug . | . . . Terrain Destroyed 5 | . . 5 Melee . | . . . Projectile 5 | . . 5 AOE . | . . . Terrain Rammed . | . . . Walls Destroyed . | . . . Machines Disabled . | . . . Actions | -11 -10 -10 --------- Run | Yrd Mat Sub Total 2271 | 56 963 1252 Wait 88 | . 59 29 Move 1937 | 46 772 1119 Hop . | . . . Pick Up 55 | 4 35 16 Fast Attach 22 | 6 6 10 Attach 11 | . 3 8 Detach 1 | . 1 . Swap 18 | . 12 6 Drop 41 | . 28 13 Fire 97 | . 46 51 Melee 1 | . 1 . Ram . | . . . Kick . | . . . Crush . | . . . Escape Stasis . | . . . Rewire . | . . . Trap . | . . . Miscellaneous . | . . . Route ------- -11/Scrapyard -10/Materials (discovered 6 exits: [*Mat x3] / [*Min x2] / [*Sub]) -10/Subcaves (discovered 2 exits: [*Mat] / [*Rec]) History --------- Turn | Location | Event 5 | -11/Scrapyard | Discovered new exit (range 15) 51 | -11/Scrapyard | Entered Materials 276 | -10/Materials | Discovered new exit (range 15) 316 | -10/Materials | Build established: Mutant 333 | -10/Materials | Discovered new exit (range 12) 388 | -10/Materials | Discovered new exit (range 7) 590 | -10/Materials | Discovered new exit (range 10) 913 | -10/Materials | Discovered new exit (range 10) 1542 | -10/Materials | Discovered new exit (range 5) 1551 | -10/Materials | Entered Subcaves 1552 | -10/Subcaves | Approached by a straggling Scientist 1808 | -10/Subcaves | A Subdweller sparked back to life 1808 | -10/Subcaves | A Subdweller sparked back to life 1808 | -10/Subcaves | A Subdweller sparked back to life 1831 | -10/Subcaves | Core integrity fell below 50% 1841 | -10/Subcaves | Found Prototype Energy Cannon 1841 | -10/Subcaves | Identified Powered Cannon 1843 | -10/Subcaves | Attached Powered Cannon, gained temporary slot: Power 2235 | -10/Subcaves | Discovered new exit (range 8) 2925 | -10/Subcaves | Shifting Twisted Machinery released Shrapnel Trap 2928 | -10/Subcaves | Shifting Twisted Machinery released Battle Cannon 2935 | -10/Subcaves | Shifting Twisted Machinery released Sub. Beam Cannon 3063 | -10/Subcaves | Ambushed by Subdwellers from Twisted Machinery 3090 | -10/Subcaves | Core integrity fell below 20% 3138 | -10/Subcaves | Lost 3 parts (1p2u) 3297 | -10/Subcaves | Learned location of 1 exit from Materials 3299 | -10/Subcaves | Shifting Twisted Machinery released Barrage Gun 3314 | -10/Subcaves | Shifting Twisted Machinery released Spk. Treads 3363 | -10/Subcaves | Discovered new exit (range 16) 3389 | -10/Subcaves | Destroyed by Autobeam Turret with Autobeam Last Messages --------------- 03292_ S-10 Pest destroyed. 03294_ Lgt. Assault Rifle fries itself beyond repair. 03297_ Acquired derelict log, extracted data. Data stored: Materials exits (x1). Barrage Gun falls loose from the Twisted Machinery. Spk. Treads falls loose from the Twisted Machinery. 03315_ Sub. Power Source shoots sparks and powers down. 03315_ Acquired Barrage Gun. 03327_ Dropped Broken Sub. Power Source. 03327_ Acquired Spk. Treads. 03349_ System corrupted: Substantial component data lost. 03363_ EXIT=FOUND 03364_ System corrupted: Hvy. Battle Rifle jammed. 03386_ Hvy. Battle Rifle destroyed. Map ----- +----------------------------------------------------+ | # ## ###?# ### "" #???? | | ### ## #### #?# ## "" ##???? | | ??########??# #?# ### ## ##????? | | ????????????## #?# ### ### ###?????? | | ??????" #????## ### # # ## "#???????? | | ????????""#????# ## "#???????? | | ??????? ???## ## ### ##???????? | | # "??????# ?## ### ## # #????????? | | ##"""?????# ## ### %% # ## ####????????? | | ?#""#??????# """ ## % ## ## ##??????????? | | ##""#??????### " " ### ### ## #??????????? | | # ""#?####???##""" ## ## ##??????????? | | # "### ##???# ## #???????????? | | # "## ##### ## #???????????? | | # " ## ## ## #???##??????? | | # " """" #### ## ##?## #??????? | | # " """ #### #### #### ##??# #??????? | | " "" ###??### ## #??# ##???# #??????? | | " " ##??????## ##??# #????# #??????? | | & " ##????????##### ###?# ##????# ##?????? | | #?????????????## #?#######?# #?????? | | #??????????????# ###????# ### #?????? | | # ##????????????#### ####??## ## ##?????? | | ## #?????????????#" "#?## ## #??????? | | ?# #?????????????# #?# ##?????? | | ?# ##????????????# @ ### #?????? | | ?#" "#????????????#" t t "## ## #?????? | | ## "##????????????#" " " "# #### ##????## | | # *#?????????????#"""" """"#####??# #??#### | | ## #?????????????#####<#####???#### #?## | | ?# "#?????????????????###??????## ## ##?# | | ?## #???????????????#######???## #### | | ??# # #???????????????# ##### ## | | ??# # #???????????????# ^ ""# | | ??##% #???????????????# """ | | ???# ]#???????????????# ^^ | | ???##[#???????????????# ""# ## | | ????# #???????????????# """ ###### ## ##### | | ????#&##??????????????# #####????######???### | | ????##%#??????????????### #???????????????????? | | ???##[##????????????????## #???????????????????? | | ??## # #????????????????## #???????????????????? | | ??# ####????????????????#" ###??????????????????? | | ??# ##?????????????????## " #??????????????????? | | ??## ##????????????????# ""#??????????????????? | | ???## #????????????????##" "##?????????????????? | | ????# #?????????????????#" " #?????????????????? | | ????# #?????????????????#" ""##?????????????????? | | ???## #?????????????????## ##??????????????????? | | #### ##?????????????????# #???????????????????? | +----------------------------------------------------+ Best States ------------- Heat Dissipation 39 Energy Generation 24 Energy Capacity 460 Matter Stores 300 Matter Capacity 300 Sight Range 16 Robot Scan Range 14 Terrain Scan Density 10 Armor Coverage 150 Evasion (%) 44 Recoil Reduction 2 Item Schematics ----------------- None Robot Schematics ------------------ None Fabricated ------------ Nothing Repaired ---------- Nothing Studied --------- None Alien Tech Used ----------------- None Achievements -------------- None Challenges ------------ None Game ------ Seed TransportGreatSource Manual? 0 Play Time 00:21:37 Cumulative 69.7 hours Start 2026.04.29 @ 17:41:21 End 2026.04.29 @ 18:02:20 Sessions 1 Manual Loads 0 Difficulty Rogue Special Mode None Game No. 73 Rogue 73 Adventurer 0 Explorer 0 Win Type - Total 1 Types 1/0/0/0/0/0/0/0/0/0 Lore% 25 Gallery% 44 Achievement% 38 Wizard Run 0 Options --------- Layout 1 ASCII 0 Keyboard 0 Movement Mouse Keybinds 0 Fullscreen 1 Font 24/Smallcaps Map View 50x35 Zoom Use 0% Tactical HUD 1 Map Filters NONE Filters NONE Steam 1 RUN: 28b6a255-d775-4147-8870-620ed04cbef5